bitfinex-derivatives/quotes_ETHF0:USTF0_20250331
["timestamp","ask_amount","ask_price","bid_price","bid_amount"]
[1743416592149,3.2078,1789.8,1789.5,2.79417]
[1743416592352,3.2078,1789.8,1789.7,1.11759]
[1743416592653,3.20453,1790.0,1789.6,4.19728]
[1743416592951,2.0871,1790.0,1789.9,1.11747]
[1743416593242,1.11747,1789.9,1789.8,1.11748]
[1743416593448,3.20455,1790.0,1789.8,1.4043]
[1743416593647,4.88069,1790.0,1789.5,3.21619607]
[1743416593850,1.11755,1789.8,1789.7,1.11755]
[1743416594238,3.20454,1790.0,1789.9,1.11747]
[1743416594444,2.0871,1790.0,1789.9,1.11747]
[1743416594648,1.0044,1790.0,1789.9,1.11747]
[1743416596343,2.4393,1790.0,1789.9,1.11747]
[1743416596542,2.4393,1790.0,1789.9,2.51857]
[1743416596739,3.5567,1790.0,1789.9,1.4011]
[1743416597050,1.11747,1789.9,1789.8,3.2078]
[1743416597252,1.4349,1789.9,1789.7,9.69344]
[1743416597444,1.11765,1789.7,1789.5,3.21619607]
[1743416597652,1.11765,1789.7,1789.6,2.51875]
[1743416597848,1.11765,1789.7,1789.6,1.4011]
[1743416598053,1.11765,1789.6,1789.5,0.00839607]
[1743416598351,2.20405,1789.6,1789.5,0.00839607]
[1743416599455,5.41185,1789.6,1789.5,0.00839607]
[1743416600947,5.41185,1789.6,1789.2,2.50804]
[1743416600948,6.7942,1789.6,1788.9,3.2078]
[1743416601150,1.11803,1789.0,1788.9,1.11807]
[1743416601353,9.96857,1789.2,1788.8,2.50831]
[1743416601652,8.2235,1789.2,1789.0,1.11803]
[1743416601846,1.11803,1789.0,1788.9,1.4024]
[1743416602253,1.11809,1788.9,1788.8,0.00839607]
[1743416602849,5.08409,1788.9,1788.8,0.00839607]
[1743416603254,1.11834,1788.6,1788.4,1.4024]
[1743416603651,1.11834,1788.6,1788.4,2.52076]
[1743416603853,1.11834,1788.5,1788.4,2.52076]
[1743416604051,1.11825,1788.7,1788.5,1.1183]
[1743416604356,2.16275,1788.7,1788.5,1.1183]
[1743416604557,2.16275,1788.7,1788.6,1.11828]
[1743416604853,1.11828,1788.6,1788.5,1.11829]
[1743416605247,1.11834,1788.5,1788.4,2.52076]
[1743416605644,1.1184,1788.4,1788.3,0.00839607]
[1743416606255,1.11838,1788.5,1788.3,1.47889607]
[1743416606446,1.1184,1788.4,1788.3,2.59731607]
[1743416606652,1.1184,1788.4,1788.3,1.47889607]
[1743416607056,1.11836,1788.5,1788.3,1.47889607]
[1743416607357,1.1184,1788.4,1788.3,2.59732607]
[1743416607950,1.1184,1788.4,1788.3,2.59733607]
[1743416608744,2.095,1788.7,1788.3,7.18669607]
[1743416608946,1.02519607,1789.1,1788.6,2.7957]
[1743416609147,1.02519607,1789.1,1788.9,1.11804]
[1743416609348,3.13060607,1789.1,1789.0,1.4161]
[1743416610045,2.01259607,1789.1,1789.0,2.53413]
[1743416610265,3.13057607,1789.1,1788.9,1.11806]
[1743416610759,3.13057607,1789.1,1789.0,1.4161]
[1743416610950,3.13057607,1789.1,1789.0,2.53413]
[1743416611260,3.13057607,1789.1,1789.0,1.4161]
[1743416612261,0.99579607,1789.1,1789.0,2.53413]
[1743416613251,0.00839607,1789.1,1789.0,5.74193]
[1743416616265,0.00839607,1789.1,1789.0,1.11803]
[1743416616452,3.57958607,1789.1,1789.0,1.11803]
[1743416616867,2.46159607,1789.1,1789.0,1.11803]
[1743416617561,2.46159607,1789.1,1789.0,2.62863]
[1743416617766,2.46159607,1789.1,1788.9,3.2078]
[1743416617962,3.57960607,1789.1,1789.0,1.11803]
[1743416618161,2.46159607,1789.1,1788.8,2.6287]
[1743416618357,2.46159607,1789.1,1788.8,1.5106]
[1743416618553,1.3891,1789.0,1788.9,1.11807]
[1743416619765,1.02399607,1789.1,1789.0,1.11803]
[1743416620161,0.00839607,1789.1,1789.0,1.11803]
[1743416620467,0.00839607,1789.1,1789.0,2.58603]
[1743416620766,0.00839607,1789.1,1789.0,3.54953]
[1743416621069,1.12635607,1789.1,1789.0,2.58603]
[1743416621367,1.12635607,1789.1,1789.0,1.468]
[1743416621659,1.12635607,1789.1,1788.7,1.11814]
[1743416621660,1.11815,1788.8,1788.7,1.11814]
[1743416621867,1.11815,1788.8,1788.7,1.468]
[1743416622263,8.17066,1788.9,1788.4,1.11834]
[1743416622460,1.11828,1788.6,1788.5,1.11833]
[1743416622758,1.11834,1788.5,1788.4,2.58634]
[1743416622959,2.4183,1788.5,1788.4,2.58634]
[1743416623661,8.1626,1788.8,1788.7,1.11821]
[1743416623861,1.4543,1788.7,1788.5,1.4986]
[1743416624069,2.57256,1788.7,1788.6,1.11828]
[1743416624269,4.32599,1788.8,1788.7,1.11821]
[1743416624470,1.11822,1788.7,1788.6,1.11823]
[1743416624667,2.57252,1788.7,1788.6,2.61683]
[1743416625165,1.4543,1788.7,1788.6,2.61683]
[1743416625668,3.2078,1788.8,1788.7,1.11821]
[1743416625872,3.4472,1788.9,1788.8,1.11815]
[1743416626170,4.56529,1788.9,1788.8,1.11815]
[1743416626359,1.11815,1788.8,1788.7,2.61678]
[1743416626560,1.3957,1788.8,1788.7,2.61678]
[1743416630070,2.51385,1788.8,1788.7,2.61678]
[1743416632575,1.3957,1788.8,1788.7,2.61678]
[1743416632970,2.51385,1788.8,1788.7,2.61678]
[1743416633678,1.3957,1788.8,1788.7,2.61678]
[1743416635872,2.51385,1788.8,1788.7,2.61678]
[1743416637475,3.8957,1788.8,1788.3,0.00839607]
[1743416637679,1.1184,1788.4,1788.3,0.00839607]
[1743416637975,1.11851,1788.3,1788.1,3.2078]
[1743416638181,1.11851,1788.3,1788.2,1.11851]
[1743416638182,2.04751,1788.3,1788.2,1.11851]
[1743416638487,2.04751,1788.3,1788.1,4.32634]
[1743416638775,0.929,1788.3,1788.1,3.2078]
[1743416639079,3.967,1788.6,1788.2,1.11853]
[1743416639281,1.11838,1788.5,1788.4,1.11838]
[1743416639475,5.08533,1788.6,1788.5,1.11834]
[1743416639669,5.08533,1788.6,1788.3,1.4564]
[1743416639670,1.11835,1788.5,1788.4,1.11835]
[1743416640182,1.11853,1788.2,1788.1,4.32634]
[1743416640474,1.11859,1788.1,1788.0,0.00839607]
[1743416640778,0.9261,1788.1,1788.0,0.00839607]
[1743416641678,2.04469,1788.1,1788.0,0.00839607]
[1743416643681,0.9261,1788.1,1787.6,2.79727]
[1743416643876,1.11867,1788.0,1787.9,1.11869]
[1743416644084,1.11867,1788.0,1787.9,1.11872]
[1743416644379,0.9261,1788.1,1787.9,1.11872]
[1743416644594,1.11865,1788.0,1787.9,1.11872]
[1743416644971,1.11872,1787.9,1787.8,2.64162607]
[1743416645281,1.11868,1788.0,1787.8,1.52289607]
[1743416645477,1.11872,1787.9,1787.8,0.00839607]
[1743416645872,4.32652,1787.9,1787.8,0.00839607]
[1743416646583,6.00461,1787.9,1787.3,3.2078]
[1743416646780,1.11891,1787.6,1787.5,1.11893]
[1743416647677,2.10523,1787.8,1787.4,4.28448]
[1743416647881,5.08687,1787.7,1787.4,1.49529607]
[1743416648074,5.08687,1787.7,1787.6,1.1189]
[1743416648687,1.1189,1787.6,1787.5,2.51372]
[1743416648884,1.1189,1787.6,1787.5,1.3948]
[1743416649183,3.968,1787.7,1787.4,0.00839607]
[1743416649184,1.11897,1787.5,1787.4,0.00839607]
[1743416650583,4.32677,1787.5,1787.4,0.00839607]
[1743416651377,0.9942,1787.6,1787.5,1.11897]
[1743416651577,3.969,1787.7,1787.6,1.1189]
[1743416652179,3.969,1787.7,1787.5,1.4002]
[1743416652385,1.1189,1787.6,1787.5,1.4002]
[1743416652887,5.08787,1787.7,1787.6,1.1189]
[1743416653089,1.11887,1787.7,1787.6,1.1189]
[1743416653386,1.11887,1787.7,1787.5,1.4002]
[1743416653578,1.11887,1787.7,1787.6,1.1189]
[1743416653780,6.07423,1787.8,1787.7,1.11884]
[1743416653986,2.10518,1787.8,1787.7,1.11884]
[1743416654282,1.1189,1787.6,1787.5,2.51912]
[1743416654482,1.11888,1787.7,1787.6,1.1189]
[1743416655079,1.11888,1787.7,1787.4,3.21619607]
[1743416655281,2.52928,1787.7,1787.6,1.1189]
[1743416655476,2.52927,1787.7,1787.6,1.1189]
[1743416656379,2.1052,1787.8,1787.7,1.11884]
[1743416656575,3.5156,1787.8,1787.7,1.11884]
[1743416656779,1.11887,1787.7,1787.6,1.11885]
[1743416657075,5.19378,1787.8,1787.4,3.21619607]
[1743416657281,1.11897,1787.5,1787.4,4.33517607]
[1743416657483,1.11897,1787.5,1787.4,1.12737607]
[1743416657987,1.11897,1787.5,1787.4,0.00839607]
[1743416658189,1.11897,1787.5,1787.4,1.12742607]
[1743416659083,1.11897,1787.5,1787.4,0.00839607]
[1743416659283,1.11897,1787.5,1787.4,1.12742607]
[1743416660688,2.62425,1787.6,1787.5,1.11897]
[1743416660889,5.08792,1787.7,1787.6,1.1189]
[1743416661089,1.11892,1787.7,1787.6,1.1189]
[1743416661482,7.59,1787.8,1787.7,1.11884]
[1743416661882,1.11887,1787.7,1787.6,1.11886]
[1743416662087,2.63467,1787.7,1787.6,1.11886]
[1743416662387,1.1189,1787.6,1787.5,1.11893]
[1743416662587,2.6347,1787.6,1787.5,1.11893]
[1743416662889,1.11897,1787.5,1787.4,0.00839607]
[1743416663083,1.11922,1787.1,1787.0,3.2078]
[1743416663283,1.1194,1786.9,1786.7,1.11944]
[1743416663593,1.1194,1786.8,1786.7,1.11944]
[1743416664092,1.1194,1786.8,1786.7,1.11945]
[1743416664093,1.11942,1786.8,1786.7,1.11945]
[1743416664283,1.11942,1786.8,1786.6,4.33286737]
[1743416664284,1.1194,1786.8,1786.6,4.33286737]
[1743416664483,1.48869607,1786.9,1786.6,4.33286737]
[1743416664484,2.59977,1786.7,1786.6,4.33286737]
[1743416664990,2.59977,1786.7,1786.6,0.00559737]
[1743416665584,1.4803,1786.7,1786.6,2.57662737]
[1743416665787,1.4803,1786.7,1786.6,1.45709737]
[1743416665981,1.4803,1786.7,1786.6,2.57662737]
[1743416666186,1.11947,1786.7,1786.6,1.45709737]
[1743416666595,2.51175,1786.8,1786.6,2.57662737]
[1743416666896,1.3923,1786.8,1786.7,1.11947]
[1743416667095,3.97839607,1786.9,1786.8,1.1194]
[1743416667393,0.00839607,1786.9,1786.8,1.1194]
[1743416668083,1.1194,1786.8,1786.7,1.4681]
[1743416668581,1.40069607,1786.9,1786.8,1.1194]
[1743416668786,1.1194,1786.8,1786.7,2.58754]
[1743416669184,2.52008607,1786.9,1786.8,1.1194]
[1743416669386,2.52008607,1786.9,1786.8,1.4819]
[1743416670690,4.19916607,1786.9,1786.6,3.21339737]
[1743416670897,1.11947,1786.7,1786.6,0.00559737]
[1743416671099,2.49073,1786.8,1786.6,0.00559737]
[1743416671398,1.11947,1786.7,1786.6,1.12508737]
[1743416671596,2.49077,1786.7,1786.6,1.12508737]
[1743416671799,1.3713,1786.7,1786.6,1.12508737]
[1743416672695,2.49077,1786.7,1786.6,1.12508737]
[1743416673792,0.00839607,1786.9,1786.8,1.1194]
[1743416674192,1.12773607,1786.9,1786.8,1.1194]
[1743416674399,1.11943,1786.8,1786.7,1.11945]
[1743416674596,2.49093,1786.8,1786.7,1.11945]
[1743416674794,1.11947,1786.7,1786.6,3.21339737]
[1743416674997,2.62617,1786.7,1786.6,0.00559737]
[1743416677903,2.79883,1786.6,1786.2,3.2078]
[1743416678096,1.3772,1786.6,1786.2,3.2078]
[1743416678401,2.49682,1786.5,1786.4,1.11963]
[1743416678699,1.3772,1786.5,1786.2,3.2078]
[1743416678899,1.11966,1786.4,1786.3,1.11967]
[1743416679101,2.49684,1786.5,1786.4,1.11965]
[1743416679796,1.3772,1786.5,1786.4,1.11965]
[1743416681599,2.49679,1786.5,1786.4,1.11965]
[1743416683094,1.11965,1786.4,1786.3,4.32748]
[1743416683295,1.11965,1786.4,1786.3,3.2078]
[1743416683997,2.09045,1786.4,1786.3,3.2078]
[1743416684400,1.11984,1786.1,1786.0,1.11989]
[1743416684899,1.5038,1786.2,1785.8,6.58377]
[1743416685201,2.62363,1786.2,1786.1,1.11984]
[1743416685399,1.5038,1786.2,1785.9,7.42532]
[1743416685696,2.62362,1786.2,1786.1,1.11984]
[1743416687807,1.11988,1786.1,1786.0,1.11986]
[1743416687998,2.52498,1786.1,1786.0,1.4966]
[1743416688305,2.52498,1786.1,1786.0,2.61651]
[1743416689406,1.4051,1786.1,1786.0,2.61651]
[1743416689597,3.2078,1786.7,1786.0,3.9966]
[1743416689797,4.38487,1786.8,1786.7,1.11947]
[1743416690001,1.11952,1786.7,1786.6,1.1195]
[1743416690302,2.57622,1786.7,1786.6,1.1195]
[1743416690909,1.11953,1786.6,1786.5,2.61615]
[1743416691108,2.57623,1786.6,1786.5,2.61615]
[1743416691405,1.11959,1786.5,1786.4,1.11964]
[1743416691601,2.57629,1786.5,1786.4,1.11964]
[1743416693402,1.4567,1786.5,1786.3,4.6395]
[1743416693603,2.3444,1786.4,1786.3,5.75922]
[1743416694003,3.46405,1786.4,1786.3,5.75922]
[1743416694202,2.3444,1786.4,1786.3,5.75922]
[1743416695505,3.971,1786.7,1786.3,4.6395]
[1743416695711,3.46398,1786.6,1786.5,1.11954]
[1743416696404,2.3444,1786.6,1786.5,1.11954]
[1743416696909,0.9363,1786.6,1786.5,4.32734]
[1743416698507,3.97939607,1786.9,1786.8,1.1194]
[1743416698709,6.04253607,1786.9,1786.8,4.3272]
[1743416699009,2.07153607,1786.9,1786.8,4.3272]
[1743416699208,0.95219607,1786.9,1786.8,4.3272]
[1743416699807,2.37069607,1786.9,1786.8,4.3272]
[1743416700507,2.37069607,1786.9,1786.8,6.8272]
[1743416700709,23.63268005,1787.6,1786.9,2.79836]
[1743416700900,23.63268005,1787.6,1787.5,1.11897]
[1743416701106,24.75158005,1787.6,1787.5,1.11897]
[1743416701306,1.11897,1787.5,1787.4,4.32679]
[1743416701604,1.11912,1787.3,1787.2,1.11913]
[1743416701801,1.11906,1787.4,1787.3,1.12745607]
[1743416703209,23.64107612,1787.6,1787.3,0.00839607]
[1743416703513,1.11903,1787.5,1787.4,1.119]
[1743416703714,1.11903,1787.4,1787.3,1.12744607]
[1743416703912,5.08903,1787.4,1787.3,0.00839607]
[1743416707710,5.08903,1787.4,1787.3,1.12748607]
[1743416707916,5.08903,1787.4,1787.3,0.00839607]
[1743416710117,1.11901,1787.5,1787.4,1.11902]
[1743416710515,1.11902,1787.5,1787.4,1.11902]
[1743416711216,1.11903,1787.4,1787.3,1.12746607]
[1743416711417,1.11903,1787.4,1787.3,0.00839607]
[1743416711812,1.11902,1787.5,1787.4,1.11903]
[1743416712011,1.11903,1787.4,1787.3,1.12747607]
[1743416712421,1.11903,1787.4,1787.3,0.00839607]
[1743416712716,1.11903,1787.4,1787.3,1.12748607]
[1743416713517,1.11898,1787.5,1787.4,1.11903]
[1743416714109,3.97739607,1787.6,1787.5,1.11897]
[1743416714110,5.09634607,1787.6,1787.5,1.11897]
[1743416715420,0.00839607,1787.6,1787.5,1.11897]
[1743416724636,0.00839607,1787.6,1787.5,7.58697]
[1743416724637,6.07e-06,1787.6,1787.5,7.58697]
[1743416725334,6.07e-06,1787.6,1787.5,8.03430224]
[1743416728636,5.08534,1788.5,1788.4,1.1184]
[1743416728825,3.967,1788.5,1788.4,1.1184]
[1743416729025,1.11834,1788.5,1788.4,1.1184]
[1743416729431,1.11833,1788.6,1788.5,1.11828]
[1743416729838,1.12666607,1788.7,1788.6,1.11828]
[1743416730344,0.00839607,1788.7,1788.6,1.11828]
[1743416730533,1.12660607,1788.7,1788.6,1.11828]
[1743416731032,0.00839607,1788.7,1788.6,1.11828]
[1743416731228,0.00839607,1788.7,1788.6,4.32608]
[1743416731428,0.00839607,1788.7,1788.6,1.11828]
[1743416733545,0.00839607,1788.7,1788.6,4.32608]
[1743416735241,3.965,1789.2,1789.1,1.1179]
[1743416735443,5.08284,1789.3,1789.1,1.1179]
[1743416735643,8.29064,1789.3,1789.2,2.0492]
[1743416735839,4.32564,1789.3,1789.2,0.9313]
[1743416736243,4.32564,1789.3,1789.2,3.29]
[1743416738940,6.82564,1789.3,1789.2,3.29]
[1743416741450,4.32564,1789.3,1789.2,3.29]
[1743416742448,4.32564,1789.3,1789.2,1.4556]
[1743416744943,1.12620607,1789.4,1789.2,1.4556]
[1743416745148,1.12620607,1789.4,1789.3,0.9593]
[1743416745354,5.09020607,1789.4,1789.3,2.07714]
[1743416745542,5.09020607,1789.4,1789.3,0.9593]
[1743416745841,5.09020607,1789.4,1789.3,1.8595]
[1743416746544,5.09020607,1789.4,1789.3,2.97734]
[1743416747044,1.12620607,1789.4,1789.3,2.97734]
[1743416747443,0.00839607,1789.4,1789.3,6.18514]
[1743416748348,0.00839607,1789.4,1789.3,2.97734]
[1743416749252,1.12617607,1789.4,1789.3,2.97734]
[1743416749452,1.12617607,1789.4,1789.3,1.8595]
[1743416749950,1.11784,1789.3,1789.2,1.4556]
[1743416750852,5.08820607,1789.4,1789.3,1.11784]
[1743416751046,1.11784,1789.3,1789.2,2.57349]
[1743416751346,1.11784,1789.3,1789.2,2.5735]
[1743416751756,5.08822607,1789.4,1789.2,3.4799]
[1743416751954,5.08822607,1789.4,1789.2,2.362]
[1743416752147,5.08822607,1789.4,1789.2,3.47985]
[1743416752451,3.97039607,1789.4,1789.3,1.11784]
[1743416753050,0.00839607,1789.4,1789.3,1.11784]
[1743416755157,0.00839607,1789.4,1789.3,4.32564]
[1743416756151,1.12617607,1789.4,1789.3,1.11784]
[1743416756357,0.00839607,1789.4,1789.3,1.11784]
[1743416758957,1.12617607,1789.4,1789.3,1.11784]
[1743416760059,1.12623607,1789.4,1789.3,1.11784]
[1743416760259,1.11784,1789.3,1789.2,4.46496]
[1743416760961,1.11784,1789.3,1789.2,2.57346]
[1743416761856,1.11784,1789.3,1789.2,1.4556]
[1743416762254,2.60644,1789.3,1789.2,1.4556]
[1743416763559,2.60644,1789.3,1789.2,2.5735]
[1743416763761,1.11784,1789.3,1789.2,2.5735]
[1743416764161,9.71180607,1789.4,1789.3,1.11784]
[1743416764461,1.11784,1789.3,1789.2,1.4556]
[1743416764653,1.11784,1789.3,1789.2,2.5735]
[1743416764853,1.11784,1789.3,1789.2,1.4556]
[1743416765162,2.53464,1789.3,1789.2,1.4556]
[1743416766562,1.11798,1789.1,1789.0,1.11803]
[1743416766855,1.11798,1789.1,1789.0,2.62893]
[1743416767059,1.11798,1789.1,1789.0,1.5109]
[1743416767259,2.52908,1789.1,1789.0,1.5109]
[1743416767456,2.52908,1789.1,1789.0,2.62893]
[1743416768860,6.48908,1789.1,1789.0,2.62893]
[1743416769658,0.854,1789.2,1789.1,1.11796]
[1743416769856,5.0779,1789.2,1789.1,2.52246]
[1743416770260,5.0779,1789.2,1789.1,1.4045]
[1743416770759,5.0779,1789.3,1789.2,1.11784]
[1743416770963,5.07786,1789.3,1789.2,1.1179]
[1743416771165,7.41607607,1789.4,1789.1,1.4045]
[1743416771460,1.1179,1789.2,1789.1,2.52241]
[1743416771660,5.08617607,1789.4,1789.3,1.11784]
[1743416772257,3.96839607,1789.4,1789.3,1.11784]
[1743416772565,5.08617607,1789.4,1789.3,2.55094]
[1743416773959,0.00839607,1789.4,1789.3,2.55094]
[1743416774160,1.11754,1789.8,1789.7,1.11758]
[1743416774362,2.51481,1789.9,1789.8,1.11753]
[1743416774562,1.11753,1789.8,1789.7,1.11754]
[1743416775664,1.11759,1789.7,1789.6,2.55912607]
[1743416776267,1.11759,1789.7,1789.6,0.00839607]
[1743416776765,1.11759,1789.7,1789.6,1.50029607]
[1743416776966,3.40666,1789.8,1789.6,1.50029607]
[1743416777167,2.59569,1789.7,1789.6,2.61794607]
[1743416777567,2.59569,1789.7,1789.6,1.50029607]
[1743416778265,0.811,1789.8,1789.6,1.50029607]
[1743416778468,1.11759,1789.7,1789.6,2.61789607]
[1743416778668,1.92856,1789.8,1789.7,1.11759]
[1743416778870,1.92856,1789.8,1789.7,2.55159]
[1743416779370,0.811,1789.8,1789.7,2.55159]
[1743416780271,6.59710607,1789.9,1789.8,1.11753]
[1743416780573,6.59710607,1789.9,1789.8,2.55153]
[1743416780770,6.59710607,1789.9,1789.8,1.434]
[1743416781666,5.47959607,1789.9,1789.8,2.55153]
[1743416781969,2.63806607,1789.9,1789.8,2.55153]
[1743416782465,2.63806607,1789.9,1789.8,1.434]
[1743416782866,1.11759,1789.7,1789.6,0.00839607]
[1743416783059,0.00839607,1789.9,1789.6,1.50599607]
[1743416783262,1.11759,1789.8,1789.7,1.11758]
[1743416783666,1.11759,1789.7,1789.6,2.62360607]
[1743416784478,1.11759,1789.7,1789.6,1.50599607]
[1743416784673,1.92849,1789.7,1789.6,1.50599607]
[1743416785676,1.92849,1789.7,1789.6,2.62364607]
[1743416785869,0.8109,1789.7,1789.6,2.62364607]
[1743416786069,1.11759,1789.7,1789.6,1.50599607]
[1743416789477,5.07459,1789.7,1789.6,0.00839607]
[1743416789972,6.52259,1789.7,1789.6,1.45499607]
[1743416790380,6.52259,1789.7,1789.6,2.57264607]
[1743416790579,6.52259,1789.7,1789.6,1.45499607]
[1743416793886,6.52259,1789.7,1789.6,2.57264607]
[1743416794888,6.52259,1789.7,1789.6,1.45499607]
[1743416796385,2.79418,1789.6,1789.2,1.11787]
[1743416796589,1.11778,1789.4,1789.3,1.4733]
[1743416797187,2.54988,1789.4,1789.3,1.4733]
[1743416797386,8.18359,1789.4,1789.0,1.89209]
[1743416797583,1.1179,1789.2,1789.1,1.4958]
[1743416797885,1.11796,1789.1,1789.0,0.00839607]
[1743416798092,2.55006,1789.1,1789.0,1.12642607]
[1743416798286,2.55006,1789.1,1789.0,0.00839607]
[1743416798594,2.2499,1789.1,1789.0,0.00839607]
[1743416798781,2.2499,1789.1,1789.0,2.62222607]
[1743416799187,1.93576,1789.1,1789.0,2.62222607]
[1743416799590,1.93576,1789.1,1789.0,1.50419607]
[1743416799789,3.43636,1789.1,1789.0,1.50419607]
[1743416800191,3.43636,1789.1,1789.0,2.62222607]
[1743416800894,3.43636,1789.1,1789.0,1.50419607]
[1743416801397,3.43636,1789.1,1789.0,2.62222607]
[1743416802888,3.43636,1789.1,1789.0,1.50419607]
[1743416803389,3.43636,1789.1,1789.0,2.62222607]
[1743416803596,1.93576,1789.1,1789.0,2.62222607]
[1743416804894,1.93576,1789.1,1789.0,1.50419607]
[1743416805084,1.93576,1789.1,1789.0,2.62222607]
[1743416805396,1.93576,1789.1,1789.0,1.50419607]
[1743416805591,5.89176,1789.1,1789.0,0.00839607]
[1743416805789,7.30816,1789.1,1789.0,0.00839607]
[1743416805985,7.30816,1789.1,1789.0,1.12642607]
[1743416805986,1.11796,1789.1,1789.0,1.12642607]
[1743416806190,4.7365,1789.2,1789.1,1.11796]
[1743416806490,1.4164,1789.3,1789.2,1.1179]
[1743416806689,0.7879,1789.4,1789.3,1.11784]
[1743416806886,0.7879,1789.4,1789.2,0.8359]
[1743416807086,1.90574,1789.4,1789.3,1.11784]
[1743416807298,0.7879,1789.4,1789.3,1.11784]
[1743416807500,1.90568,1789.4,1789.3,2.59814]
[1743416808294,0.7879,1789.4,1789.3,2.59814]
[1743416808691,6.49016,1789.5,1789.4,1.11778]
[1743416808891,6.49016,1789.5,1789.4,2.56928]
[1743416809098,6.49016,1789.5,1789.4,1.4515]
[1743416809392,1.11776,1789.5,1789.4,2.56928]
[1743416809700,5.14685,1789.6,1789.5,1.11772]
[1743416809902,5.14685,1789.6,1789.5,2.56922]
[1743416810196,4.0292,1789.6,1789.5,2.56922]
[1743416810395,1.11763,1789.7,1789.6,1.11765]
[1743416810692,1.11763,1789.7,1789.6,2.56915]
[1743416810898,1.11763,1789.7,1789.6,1.4515]
[1743416813501,6.0018,1789.7,1789.0,3.21619607]
[1743416813800,1.11772,1789.5,1789.4,1.4135]
[1743416814201,3.36602,1789.5,1789.4,1.4135]
[1743416815093,6.57382,1789.5,1789.4,1.4135]
[1743416816004,7.1628,1789.7,1789.4,1.4135]
[1743416816194,1.4839,1789.7,1789.4,1.4135]
[1743416816501,1.5493,1789.8,1789.4,10.20995]
[1743416816702,1.88218,1789.8,1789.7,1.11759]
[1743416817695,1.88217,1789.8,1789.7,1.11759]
[1743416817903,0.7646,1789.8,1789.6,1.3753]
[1743416818207,1.88219,1789.8,1789.6,2.49291]
[1743416818504,1.11759,1789.7,1789.6,2.49292]
[1743416818802,1.88217,1789.8,1789.6,1.11762]
[1743416819097,1.11759,1789.7,1789.6,1.11762]
[1743416820497,2.1512,1789.8,1789.5,4.38728]
[1743416820802,1.11761,1789.7,1789.6,1.11759]
[1743416821100,1.11761,1789.7,1789.5,1.593]
[1743416821402,1.11772,1789.5,1789.4,1.11772]
[1743416823205,1.11772,1789.5,1789.2,5.13054]
[1743416823206,1.11784,1789.3,1789.2,5.13054]
[1743416823695,1.11784,1789.3,1789.2,5.1306]
[1743416823897,1.11796,1789.1,1789.0,3.21619607]
[1743416824196,1.11796,1789.1,1789.0,1.12637607]
[1743416826407,2.51806,1789.1,1789.0,1.12637607]
[1743416827501,2.51806,1789.1,1789.0,0.00839607]
[1743416827699,6.47206,1789.1,1789.0,0.00839607]
[1743416829407,1.4001,1789.1,1789.0,1.12642607]
[1743416829713,2.51806,1789.1,1789.0,0.00839607]
[1743416830507,1.4001,1789.1,1789.0,1.12642607]
[1743416831109,0.7884,1789.2,1789.1,1.1110205]
[1743416833211,1.90636,1789.2,1789.1,1.11796]
[1743416833415,2.2967,1789.2,1789.1,1.11796]
[1743416833915,0.7884,1789.2,1789.1,1.11796]
[1743416835018,1.9063,1789.2,1789.1,1.11796]
[1743416835517,0.7884,1789.2,1789.1,2.51376]
[1743416835717,1.9063,1789.2,1789.1,2.51376]
[1743416836120,3.2985,1789.2,1789.1,1.3958]
[1743416836623,3.2985,1789.2,1789.1,2.51376]
[1743416836815,0.7884,1789.2,1789.1,2.51376]
[1743416837415,0.7884,1789.2,1789.0,0.00839607]
[1743416837615,5.71796,1789.1,1789.0,0.00839607]
[1743416837919,1.3922,1789.1,1788.6,2.7957]
[1743416838114,1.11797,1789.1,1789.0,1.11803]
[1743416838318,6.1336,1789.2,1789.1,1.11796]
[1743416838620,2.1806,1789.2,1789.1,1.11796]
[1743416838823,0.7884,1789.2,1789.1,1.11796]
[1743416839019,1.9063,1789.2,1789.1,1.11796]
[1743416839222,1.11796,1789.1,1789.0,3.27287607]
[1743416839520,2.62166,1789.1,1789.0,1.89317607]
[1743416839720,2.62166,1789.1,1789.0,0.00839607]
[1743416840519,5.82946,1789.1,1789.0,0.00839607]
[1743416840721,1.11826,1788.7,1788.5,3.2078]
[1743416840915,5.0712,1788.8,1788.5,3.2078]
[1743416841116,5.4567,1788.8,1788.7,1.11821]
[1743416841312,3.2078,1789.1,1788.8,3.9134]
[1743416841517,3.953,1789.0,1788.9,1.11809]
[1743416841719,1.5037,1789.1,1789.0,1.11803]
[1743416842024,1.51209607,1789.1,1789.0,1.11803]
[1743416842221,2.63005607,1789.1,1789.0,1.11803]
[1743416842525,2.63005607,1789.1,1788.8,1.89334607]
[1743416842526,1.11803,1789.0,1788.9,1.11804]
[1743416842726,1.11809,1788.9,1788.8,1.12649607]
[1743416843126,2.50968,1789.0,1788.9,1.11809]
[1743416843427,2.50963,1789.0,1788.9,1.11809]
[1743416843728,1.11809,1788.9,1788.8,1.12650607]
[1743416844021,1.1182,1788.8,1788.6,1.11825]
[1743416844228,1.3916,1788.7,1788.6,1.11828]
[1743416845521,2.50981,1788.7,1788.6,1.11828]
[1743416845722,1.3916,1788.7,1788.6,1.11828]
[1743416846123,1.9203,1788.8,1788.5,3.2078]
[1743416846124,0.8021,1788.8,1788.7,1.11821]
[1743416846329,3.953,1788.9,1788.8,1.11815]
[1743416847130,5.07109,1788.9,1788.8,1.11815]
[1743416847531,1.11822,1788.7,1788.6,1.11823]
[1743416848435,0.7776,1788.7,1788.6,1.11823]
[1743416848629,1.4503,1788.8,1788.7,1.11821]
[1743416848825,5.3317,1788.9,1788.8,1.11815]
[1743416849024,3.953,1788.9,1788.8,1.11815]
[1743416849326,6.74828,1788.9,1788.5,3.2078]
[1743416849626,1.11828,1788.6,1788.5,4.32609]